[Event "94th Tradewise Hastings Congress"]
[Site "Hastings"]
[Date "2019.01.06"]
[Round "10"]
[White "Spiegel, Stefan, Dr."]
[Black "Armstrong, Malcolm J"]
[Result "1/2-1/2"]
[ECO "C42"]
[WhiteElo "2124"]
[BlackElo "2052"]
[Annotator "NA"]
[PlyCount "27"]
[EventDate "2018.12.28"]
[EventType "swiss"]
[EventCountry "ENG"]
[SourceTitle "playchess.com"]
[Source "ChessBase"]
[SourceQuality "1"]
[TimeControl "40/6000+30:3000+30"]

1. e4 {[%emt 0:00:00]} e5 {[%emt 0:00:00]} 2. Nf3 {[%emt 0:00:00]} Nf6 {[%emt 0:00:03]} 3. Nxe5 {[%emt 0:00:16]} d6 {[%emt 0:00:10]} 4. Nf3 {[%emt 0:00:07]} Nxe4 {[%emt 0:00:08]} 5. d4 {[%emt 0:00:24]} d5 {[%emt 0:00:12]} 6. Bd3 {[%emt 0:00:46]} Nc6 {[%emt 0:00:32]} 7. O-O {[%emt 0:00:24]} Be7 {[%emt 0:00:10]} 8. Nbd2 {[%emt 0:00:43]} Nf6 {[%emt 0:03:02]} 9. c3 {[%emt 0:01:13]} O-O {[%emt 0:00:37]} 10. Qc2 {[%emt 0:00:58]} Re8 {[%emt 0:04:20]} 11. Re1 {[%emt 0:03:11]} Bd6 {[%emt 0:01:46]} 12. Rxe8+ {[%emt 0:00:07]} Qxe8 {[%emt 0:00:11]} 13. h3 {[%emt 0:00:05]} h6 {[%emt 0:04:12]} 14. Nf1 {[%emt 0:01:29]} 1/2-1/2

[Event "94th Tradewise Hastings Congress"]
[Site "Hastings"]
[Date "2019.01.06"]
[Round "10"]
[White "Snape, Ian L"]
[Black "Royset, Pal"]
[Result "0-1"]
[ECO "B90"]
[WhiteElo "2112"]
[BlackElo "2182"]
[Annotator "NA"]
[PlyCount "42"]
[EventDate "2018.12.28"]
[EventType "swiss"]
[EventCountry "ENG"]
[SourceTitle "playchess.com"]
[Source "ChessBase"]
[SourceQuality "1"]
[TimeControl "40/6000+30:3000+30"]

1. e4 {[%emt 0:00:00]} c5 {[%emt 0:00:00]} 2. Nf3 {[%emt 0:00:00]} d6 {[%emt 0:00:11]} 3. d4 {[%emt 0:00:00]} cxd4 {[%emt 0:00:05]} 4. Nxd4 {[%emt 0:00:00]} Nf6 {[%emt 0:00:06]} 5. Nc3 {[%emt 0:00:00]} a6 {[%emt 0:00:21]} 6. Bc4 {[%emt 0:00:25]} e6 {[%emt 0:00:34]} 7. Bb3 {[%emt 0:00:05]} Nbd7 {[%emt 0:01:32]} 8. Bg5 {[%emt 0:00:41]} Nc5 {[%emt 0:04:20]} 9. f4 {[%emt 0:02:13]} h6 {[%emt 0:09:58]} 10. Bxf6 {[%emt 0:00:40] LiveBook: 11 Games} Qxf6 {[%emt 0:01:01]} 11. O-O {[%emt 0:03:20]} g6 {[%emt 0:19:24]} 12. f5 {[%emt 0:03:28]} Bg7 {[%emt 0:00:41]} 13. Ndb5 $2 {[%emt 0:13:25]} (13. Nce2 $11 {and White is okay.} gxf5 14. exf5) 13... axb5 {[%emt 0:01:17]} 14. Nxb5 {[%emt 0:02:40]} O-O {[%emt 0:04:52]} 15. fxe6 $19 {[%emt 0:00:48]} Qg5 {[%emt 0:05:05]} 16. exf7+ {[%emt 0:01:37]} Kh7 {[%emt 0:01:06]} 17. Nc7 {[%emt 0:11:51]} Nxb3 {[%emt 0:05:44]} 18. Nxa8 {[%emt 0:03:48]} Nxa1 {[%emt 0:01:18]} 19. Qxd6 {[%emt 0:01:40]} Nxc2 {[%emt 0:11:46]} 20. Nc7 {[%emt 0:05:10]} Qe3+ {[%emt 0:01:19]} 21. Kh1 {[%emt 0:00:16]} Rxf7 {[%emt 0:00:16]} 0-1

[Event "94th Tradewise Hastings Congress"]
[Site "Hastings"]
[Date "2019.01.06"]
[Round "10"]
[White "White, Stuart A"]
[Black "Chapman, Matt"]
[Result "1-0"]
[ECO "D17"]
[WhiteElo "2096"]
[BlackElo "1902"]
[Annotator "NA RC"]
[PlyCount "151"]
[EventDate "2018.12.28"]
[EventType "swiss"]
[EventCountry "ENG"]
[SourceTitle "playchess.com"]
[Source "ChessBase"]
[SourceQuality "1"]
[TimeControl "40/6000+30:3000+30"]

1. c4 {[%emt 0:00:00]} c6 {[%emt 0:00:00]} 2. d4 {[%emt 0:00:00]} d5 {[%emt 0:00:00]} 3. Nf3 {[%emt 0:00:00]} Nf6 {[%emt 0:00:06]} 4. Nc3 {[%emt 0:00:00]} dxc4 {[%emt 0:00:00]} 5. a4 {[%emt 0:00:00]} Bf5 {[%emt 0:00:04]} 6. Ne5 {[%emt 0:00:03]} Nbd7 {[%emt 0:01:20]} 7. Nxc4 {[%emt 0:00:15]} Qc7 {[%emt 0:00:14]} 8. g3 {[%emt 0:00:53]} e5 {[%emt 0:00:43]} 9. dxe5 {[%emt 0:00:43]} Nxe5 {[%emt 0:00:08]} 10. Bf4 {[%emt 0:00:12]} Nfd7 {[%emt 0:00:29]} 11. Bg2 {[%emt 0:00:21]} f6 {[%emt 0:00:36]} 12. O-O {[%emt 0:01:42]} g5 {[%emt 0:03:39] LiveBook: 48 Games D17: Slav Defence: 5 a4 Bf5: Lines with 6 Nh4 and 6 Ne5} (12... Rd8 13. Nxe5 Nxe5 14. Qb3 Qf7 15. Qxf7+ Kxf7 16. Rfc1 Bb4 17. Ne4 Bxe4 18. Bxe4 Rd4 19. Bc2 Bd2 20. Rd1 Rhd8 21. Bxe5 fxe5 {½-½ (50) Sarana,A (2641)-Paravyan,D (2629) Sochi 2018}) 13. Bxe5 {[%emt 0:07:29]} Nxe5 {[%emt 0:00:41]} 14. Ne3 {[%emt 0:01:19]} Be6 {[%emt 0:01:57]} 15. Rc1 {[%emt 0:06:41]} Qa5 $146 {[%emt 0:15:24]} ({Predecessor:} 15... Rd8 16. Qc2 Qf7 17. Ne4 Bb4 18. f4 gxf4 19. Rxf4 Be7 20. Rcf1 Rf8 21. Ng5 Qg8 22. Nxh7 Bb3 23. Qe4 Bd5 24. Nxd5 cxd5 25. Qf5 Rf7 26. Nxf6+ {1-0 (26) Anikonov,D (2407)-Tuomainen,F (2087) Prague 2016}) 16. Ne4 {[%emt 0:08:19]} Rd8 {[%emt 0:05:05]} 17. Qc2 {[%emt 0:01:32]} Be7 {[%emt 0:00:59]} 18. b4 {[%emt 0:05:24]} Qb6 {[%emt 0:11:40]} 19. a5 {[%emt 0:13:22]} Qxb4 {[%emt 0:00:49]} 20. Rb1 {[%emt 0:00:09]} Qxa5 {[%emt 0:00:19]} 21. Rxb7 {[%emt 0:00:28]} Bc8 {[%emt 0:05:55]} 22. Rbb1 {[%emt 0:13:22]} g4 {[%emt 0:05:07]} 23. Nc4 {[%emt 0:07:41]} Nxc4 {[%emt 0:01:42]} 24. Qxc4 {[%emt 0:00:04]} Qa6 {[%emt 0:00:21]} 25. Qb3 {[%emt 0:10:15]} Kf8 {[%emt 0:03:45]} 26. Ra1 {[%emt 0:01:26]} Qb6 {[%emt 0:07:03]} 27. Qc3 {[%emt 0:00:37]} Kg7 {[%emt 0:01:49]} 28. Rfb1 {[%emt 0:03:42]} Qd4 {[%emt 0:08:46]} 29. Qxc6 {[%emt 0:08:51]} f5 {[%emt 0:00:44]} 30. e3 {[%emt 0:01:33]} Qe5 {[%emt 0:06:10]} 31. Qc3 {[%emt 0:02:00]} Qxc3 {[%emt 0:01:50]} 32. Nxc3 {[%emt 0:00:03]} Bc5 {[%emt 0:01:16]} 33. Rb5 {[%emt 0:03:22]} Bb6 {[%emt 0:03:41]} 34. Nd5 {[%emt 0:05:21]} Rd6 {[%emt 0:02:07]} 35. Nxb6 {[%emt 0:04:16]} axb6 {[%emt 0:00:22]} 36. h3 {[%emt 0:04:41]} Bd7 {[%emt 0:05:13]} 37. Rb4 {[%emt 0:00:15]} h5 {[%emt 0:00:33]} 38. Rab1 {[%emt 0:01:25]} Rb8 {[%emt 0:01:51]} 39. h4 {[%emt 0:00:49]} Be6 {[%emt 0:04:11]} 40. Kf1 {[%emt 0:00:33]} Kf6 {[%emt 0:01:48]} 41. Ke1 {[%emt 0:02:26]} Bd7 {[%emt 0:01:17]} 42. Rd1 {[%emt 0:06:49]} Rxd1+ {[%emt 0:00:00]} 43. Kxd1 {[%emt 0:00:05]} Be8 {[%emt 0:00:00]} 44. Rd4 {[%emt 0:01:07]} Ke6 {[%emt 0:01:48]} 45. Bd5+ {[%emt 0:01:56]} Kf6 {[%emt 0:01:44]} 46. Bb3 {[%emt 0:00:30]} b5 {[%emt 0:00:15]} 47. Rd6+ {[%emt 0:00:49]} Ke7 {[%emt 0:01:26]} 48. Re6+ {[%emt 0:01:56]} Kd8 {[%emt 0:02:19]} 49. Rf6 {[%emt 0:05:55]} Bd7 {[%emt 0:00:15]} 50. Rf8+ {[%emt 0:00:49]} Kc7 {[%emt 0:00:23]} 51. Rxb8 {[%emt 0:00:32]} Kxb8 {[%emt 0:00:03]} 52. Bf7 {[%emt 0:00:04]} Kc7 {[%emt 0:00:56]} 53. Bxh5 {[%emt 0:00:18]} Kd6 {[%emt 0:00:06]} 54. Bf7 {[%emt 0:01:11]} Ke7 {[%emt 0:00:35]} 55. Bb3 {[%emt 0:00:36]} Be8 {[%emt 0:00:04]} 56. Kd2 {[%emt 0:00:18]} Kd6 {[%emt 0:00:05]} 57. Kc3 {[%emt 0:01:12]} Kc5 {[%emt 0:00:06]} 58. Be6 {[%emt 0:01:43]} Bg6 {[%emt 0:00:29]} 59. Bg8 {[%emt 0:07:17]} Be8 {[%emt 0:02:31]} 60. Bh7 {[%emt 0:02:30]} Bd7 {[%emt 0:00:05]} 61. Bg6 {[%emt 0:01:35]} Kd6 {[%emt 0:00:42]} 62. Bf7 {[%emt 0:00:56]} Ke5 {[%emt 0:02:03]} 63. Kb4 {[%emt 0:01:27]} Ke4 {[%emt 0:00:07]} 64. Kc5 {[%emt 0:01:24]} Ke5 {[%emt 0:00:57]} 65. Bd5 {[%emt 0:02:21]} b4 {[%emt 0:00:40]} 66. Bb3 {[%emt 0:01:24]} Ke4 {[%emt 0:00:13]} 67. Kd6 {[%emt 0:03:42]} Be8 {[%emt 0:06:06]} 68. Bd5+ {[%emt 0:00:24]} Kd3 {[%emt 0:00:36]} 69. Ke7 {[%emt 0:01:14]} Bh5 {[%emt 0:02:54]} 70. Kf6 {[%emt 0:00:09]} Ke2 {[%emt 0:00:34]} 71. Kxf5 {[%emt 0:01:48]} Kxf2 {[%emt 0:00:08]} 72. Kf4 {[%emt 0:00:03]} Ke2 {[%emt 0:01:17]} 73. e4 {[%emt 0:00:18]} Kd3 {[%emt 0:00:12]} 74. Kg5 {[%emt 0:01:07]} Be8 {[%emt 0:00:20]} 75. h5 {[%emt 0:00:10]} b3 {[%emt 0:00:51]} 76. Bxb3 {[%emt 0:00:34]} 1-0

[Event "94th Tradewise Hastings Congress"]
[Site "Hastings"]
[Date "2019.01.06"]
[Round "10"]
[White "Miller, Dominic"]
[Black "Kalavannan, Koby"]
[Result "0-1"]
[ECO "A37"]
[WhiteElo "2061"]
[BlackElo "2328"]
[Annotator "NA"]
[PlyCount "54"]
[EventDate "2018.12.28"]
[EventType "swiss"]
[EventCountry "ENG"]
[SourceTitle "playchess.com"]
[Source "ChessBase"]
[SourceQuality "1"]
[TimeControl "40/6000+30:3000+30"]

1. c4 {[%emt 0:00:00]} g6 {[%emt 0:00:00]} 2. Nc3 {[%emt 0:00:00]} Bg7 {[%emt 0:00:04]} 3. g3 {[%emt 0:00:09]} c5 {[%emt 0:00:27]} 4. Bg2 {[%emt 0:00:04]} Nc6 {[%emt 0:00:11]} 5. Nf3 {[%emt 0:00:26]} d6 {[%emt 0:01:09]} 6. O-O {[%emt 0:00:07]} e6 {[%emt 0:00:16]} 7. e3 {[%emt 0:00:09]} Nge7 {[%emt 0:00:25]} 8. d4 {[%emt 0:00:06]} O-O {[%emt 0:02:41]} 9. Re1 {[%emt 0:01:03] LiveBook: 20 Games A37: Symmetrical English vs ...g6: 4 Bg2 Bg7 5 Nf3} b6 {[%emt 0:01:30]} 10. b3 {[%emt 0:02:00]} e5 $146 {[%emt 0:14:01]} ({Predecessor:} 10... Bb7 11. Bb2 Rb8 12. d5 exd5 13. cxd5 Nb4 14. e4 b5 15. Qd2 c4 16. Nd1 Nd3 17. Bxg7 Kxg7 {0-1 (37) Bocharov,D (2583)-Almasi,Z (2682) Riadh 2017}) 11. d5 {[%emt 0:04:02]} e4 $1 {[%emt 0:04:55]} 12. Nxe4 {[%emt 0:02:09]} Bxa1 {[%emt 0:10:56]} 13. dxc6 {[%emt 0:00:04]} Nxc6 {[%emt 0:01:19]} 14. Nxd6 {[%emt 0:00:22]} Bc3 {[%emt 0:12:10]} 15. Re2 {[%emt 0:04:33]} Bg4 {[%emt 0:04:20]} 16. h3 {[%emt 0:07:32]} Be6 {[%emt 0:00:48]} 17. Rc2 {[%emt 0:12:40]} Bg7 {[%emt 0:04:27]} 18. Rd2 {[%emt 0:02:26]} Qc7 {[%emt 0:09:03]} 19. Nb5 {[%emt 0:03:52]} Qe7 {[%emt 0:00:34]} 20. Ne1 {[%emt 0:03:16]} a6 {[%emt 0:22:47]} 21. Bxc6 {[%emt 0:02:14]} Rac8 {[%emt 0:00:06]} 22. Bd7 {[%emt 0:03:21]} Bxd7 {[%emt 0:00:13]} 23. Rxd7 {[%emt 0:00:38]} Rcd8 {[%emt 0:02:41]} 24. Rd2 {[%emt 0:08:59]} axb5 {[%emt 0:00:28]} 25. cxb5 {[%emt 0:00:04]} Bc3 {[%emt 0:00:25]} 26. Rxd8 $19 {[%emt 0:01:36]} Rxd8 {[%emt 0:00:01]} 27. Qe2 {[%emt 0:00:20]} Qd7 {[%emt 0:00:41]} 0-1

[Event "94th Tradewise Hastings Congress"]
[Site "Hastings"]
[Date "2019.01.06"]
[Round "10"]
[White "Ratnesan, Ranesh"]
[Black "Sumit, Kumar"]
[Result "1/2-1/2"]
[ECO "A45"]
[WhiteElo "2055"]
[BlackElo "2179"]
[Annotator "NA"]
[PlyCount "72"]
[EventDate "2018.12.28"]
[EventType "swiss"]
[EventCountry "ENG"]
[SourceTitle "playchess.com"]
[Source "ChessBase"]
[SourceQuality "1"]
[TimeControl "40/6000+30:3000+30"]

1. d4 {[%emt 0:00:00]} Nf6 {[%emt 0:00:00]} 2. Bg5 {[%emt 0:00:00]} Ne4 {[%emt 0:00:08]} 3. Bf4 {[%emt 0:00:08]} d5 {[%emt 0:00:07]} 4. f3 {[%emt 0:00:46]} Nf6 {[%emt 0:00:29]} 5. e4 {[%emt 0:01:01]} e6 {[%emt 0:03:02]} 6. e5 {[%emt 0:04:30]} (6. Nc3 $11) 6... Nfd7 {[%emt 0:00:07]} 7. Be3 {[%emt 0:01:44]} c5 {[%emt 0:00:46]} 8. c3 {[%emt 0:00:57] LiveBook: 41 Games} Nc6 {[%emt 0:01:49]} 9. f4 {[%emt 0:03:15]} a6 {[%emt 0:11:19]} 10. Nf3 {[%emt 0:06:07]} b5 {[%emt 0:01:35]} 11. Be2 {[%emt 0:04:36]} cxd4 {[%emt 0:08:26]} 12. cxd4 {[%emt 0:02:29]} Bb4+ {[%emt 0:00:08]} 13. Nbd2 {[%emt 0:02:43]} Bb7 {[%emt 0:02:51]} 14. O-O {[%emt 0:01:13]} O-O {[%emt 0:01:57]} 15. Bd3 {[%emt 0:06:05]} f5 $16 {[%emt 0:05:15]} 16. g4 {[%emt 0:19:46]} Ne7 {[%emt 0:02:20]} 17. a3 {[%emt 0:11:26]} Bxd2 {[%emt 0:04:13]} 18. Bxd2 {[%emt 0:01:03]} h6 {[%emt 0:02:30]} 19. Bb4 {[%emt 0:03:00]} g6 {[%emt 0:08:43]} 20. b3 {[%emt 0:03:21]} Rf7 {[%emt 0:00:45]} 21. Ra2 {[%emt 0:01:05]} fxg4 {[%emt 0:06:33]} 22. Nh4 {[%emt 0:11:21]} Nf5 {[%emt 0:00:39]} 23. Nxg6 {[%emt 0:02:01]} Rg7 {[%emt 0:13:40]} 24. Qxg4 {[%emt 0:02:28]} h5 {[%emt 0:01:50]} 25. Qxh5 {[%emt 0:06:19]} Qh4 {[%emt 0:00:07]} 26. Be2 {[%emt 0:01:09]} Qxh5 {[%emt 0:03:23]} 27. Bxh5 {[%emt 0:00:37]} Nh4 {[%emt 0:00:04]} 28. Kh1 {[%emt 0:06:09]} Nxg6 {[%emt 0:00:11]} 29. Rg2 {[%emt 0:01:16]} Kh7 {[%emt 0:09:56]} 30. f5 {[%emt 0:03:00]} exf5 {[%emt 0:01:37]} 31. Rxf5 {[%emt 0:00:44]} Ndxe5 {[%emt 0:07:25]} 32. dxe5 {[%emt 0:04:15]} d4 {[%emt 0:00:06]} 33. Bf3 {[%emt 0:00:05]} Bxf3 {[%emt 0:00:07]} 34. Rxf3 {[%emt 0:00:05]} Nxe5 {[%emt 0:00:05]} 35. Rxg7+ {[%emt 0:00:45]} Kxg7 {[%emt 0:00:02]} 36. Rf5 {[%emt 0:00:27]} Nc6 {[%emt 0:02:42]} 1/2-1/2

[Event "94th Tradewise Hastings Congress"]
[Site "Hastings"]
[Date "2019.01.06"]
[Round "10"]
[White "Norinkeviciute, Rasa"]
[Black "Willson, Ollie"]
[Result "1/2-1/2"]
[ECO "A11"]
[WhiteElo "2028"]
[BlackElo "2081"]
[Annotator "NA RC"]
[PlyCount "101"]
[EventDate "2018.12.28"]
[EventType "swiss"]
[EventCountry "ENG"]
[SourceTitle "playchess.com"]
[Source "ChessBase"]
[SourceQuality "1"]
[TimeControl "40/6000+30:3000+30"]

1. c4 {[%emt 0:00:00]} Nf6 {[%emt 0:00:00]} 2. Nf3 {[%emt 0:00:15]} c6 {[%emt 0:02:32]} 3. Nc3 {[%emt 0:03:35]} d5 {[%emt 0:00:39]} 4. e3 {[%emt 0:00:11]} g6 {[%emt 0:04:14]} 5. b3 {[%emt 0:00:39]} Bg7 {[%emt 0:00:11]} 6. Bb2 {[%emt 0:00:09]} O-O {[%emt 0:01:30]} 7. Be2 {[%emt 0:07:31]} Nbd7 {[%emt 0:08:07] A11: English Opening: 1...c6} 8. d4 {[%emt 0:03:18]} b6 {[%emt 0:10:09]} 9. Rc1 {[%emt 0:09:22]} Bb7 {[%emt 0:00:47]} 10. O-O {[%emt 0:10:00]} Rc8 {[%emt 0:06:30]} 11. cxd5 {[%emt 0:11:15]} cxd5 {[%emt 0:00:48]} 12. Ne1 $146 {[%emt 0:05:57]} Ne8 {[%emt 0:07:12]} 13. f4 {[%emt 0:03:27]} Nd6 {[%emt 0:00:00]} 14. Nd3 {[%emt 0:05:53]} Nf5 {[%emt 0:14:33]} 15. Qd2 {[%emt 0:03:04]} h5 {[%emt 0:06:36]} 16. Bf3 {[%emt 0:05:50]} Nf6 {[%emt 0:02:06]} 17. Ne5 {[%emt 0:04:39]} Qd6 {[%emt 0:11:52]} 18. Rfe1 {[%emt 0:07:12]} Rfd8 {[%emt 0:04:16]} 19. Qf2 {[%emt 0:05:37]} Ne4 {[%emt 0:06:45]} 20. Nxe4 {[%emt 0:04:16]} dxe4 {[%emt 0:00:12]} 21. Be2 {[%emt 0:00:38]} Qb4 {[%emt 0:03:34]} 22. Bc4 {[%emt 0:01:32]} e6 {[%emt 0:00:26]} 23. Qe2 {[%emt 0:03:08]} Qd6 {[%emt 0:08:52]} 24. Red1 {[%emt 0:02:32]} Rc7 {[%emt 0:01:50]} 25. Qe1 {[%emt 0:01:37]} Rdc8 {[%emt 0:00:51]} 26. Bf1 {[%emt 0:00:54]} Rxc1 {[%emt 0:01:24]} 27. Rxc1 {[%emt 0:00:04]} Rxc1 {[%emt 0:00:36]} 28. Qxc1 {[%emt 0:00:35]} Bf8 {[%emt 0:00:31]} 29. g3 {[%emt 0:01:37]} Ne7 {[%emt 0:01:36]} 30. Ba3 {[%emt 0:00:40]} Qd8 {[%emt 0:00:17]} 31. Kf2 {[%emt 0:02:46]} Nd5 {[%emt 0:01:47]} 32. Bb2 {[%emt 0:04:00]} Nb4 {[%emt 0:01:00]} 33. a3 {[%emt 0:00:25]} Nd5 {[%emt 0:00:06]} 34. Be2 {[%emt 0:00:14]} Be7 {[%emt 0:00:52]} 35. Nc6 {[%emt 0:00:59]} Bxc6 {[%emt 0:00:56]} 36. Qxc6 {[%emt 0:00:04]} Qc7 {[%emt 0:00:27]} 37. Qxc7 {[%emt 0:01:43]} Nxc7 {[%emt 0:00:03]} 38. h3 {[%emt 0:00:16]} Nd5 {[%emt 0:00:38]} 39. Bd1 {[%emt 0:00:25]} b5 {[%emt 0:01:50]} 40. Bc2 {[%emt 0:01:18]} f5 {[%emt 0:00:06]} 41. g4 {[%emt 0:09:45]} hxg4 {[%emt 0:04:33]} 42. hxg4 {[%emt 0:00:07]} b4 {[%emt 0:02:13]} 43. axb4 {[%emt 0:13:57]} Bxb4 {[%emt 0:00:24]} 44. Ke2 {[%emt 0:02:07]} Kf7 {[%emt 0:07:36]} 45. gxf5 {[%emt 0:07:51]} gxf5 {[%emt 0:06:20]} 46. Bc1 {[%emt 0:00:57]} Kg6 {[%emt 0:04:30]} 47. Kf2 {[%emt 0:00:59]} Bc3 {[%emt 0:10:58]} 48. Bd1 {[%emt 0:04:00]} Nb4 {[%emt 0:01:11]} 49. Ba3 {[%emt 0:00:56]} Nd3+ {[%emt 0:03:07]} 50. Ke2 {[%emt 0:01:34]} a5 {[%emt 0:03:41]} 51. Bd6 $11 {[%emt 0:02:30]} 1/2-1/2

[Event "94th Tradewise Hastings Congress"]
[Site "Hastings"]
[Date "2019.01.06"]
[Round "10"]
[White "Rice, Chris B"]
[Black "Anderson, John"]
[Result "1/2-1/2"]
[ECO "A15"]
[WhiteElo "1963"]
[BlackElo "2163"]
[Annotator "NA"]
[PlyCount "22"]
[EventDate "2018.12.28"]
[EventType "swiss"]
[EventCountry "ENG"]
[SourceTitle "playchess.com"]
[Source "ChessBase"]
[SourceQuality "1"]
[TimeControl "40/6000+30:3000+30"]

1. c4 {[%emt 0:00:24]} Nf6 {[%emt 0:00:00]} 2. g3 {[%emt 0:00:13]} g6 {[%emt 0:00:11]} 3. Bg2 {[%emt 0:00:06]} Bg7 {[%emt 0:00:07]} 4. Nc3 {[%emt 0:00:10]} O-O {[%emt 0:00:14]} 5. d3 {[%emt 0:00:16]} d6 {[%emt 0:00:14]} 6. Bg5 {[%emt 0:00:09]} h6 {[%emt 0:00:50]} 7. Bd2 {[%emt 0:00:06]} a6 {[%emt 0:02:50]} 8. Rb1 {[%emt 0:06:40]} e5 {[%emt 0:01:54]} 9. e4 {[%emt 0:02:08]} Be6 {[%emt 0:03:30]} 10. Nge2 {[%emt 0:03:12]} Nc6 {[%emt 0:04:35]} 11. O-O {[%emt 0:03:23]} Qd7 {[%emt 0:01:47]} 1/2-1/2

[Event "94th Tradewise Hastings Congress"]
[Site "Hastings"]
[Date "2019.01.06"]
[Round "10"]
[White "Byrn, Carsten"]
[Black "Graham, Cassie M"]
[Result "1/2-1/2"]
[ECO "A16"]
[WhiteElo "1959"]
[BlackElo "1889"]
[Annotator "NA"]
[PlyCount "74"]
[EventDate "2018.12.28"]
[EventType "swiss"]
[EventCountry "ENG"]
[SourceTitle "playchess.com"]
[Source "ChessBase"]
[SourceQuality "1"]
[TimeControl "40/6000+30:3000+30"]

1. c4 {[%emt 0:00:00]} Nf6 {[%emt 0:00:00]} 2. g3 {[%emt 0:00:00]} g6 {[%emt 0:00:00]} 3. Bg2 {[%emt 0:00:01]} Bg7 {[%emt 0:00:00]} 4. Nc3 {[%emt 0:00:11]} d6 {[%emt 0:00:11]} 5. e4 {[%emt 0:00:11]} O-O {[%emt 0:00:21]} 6. Nge2 {[%emt 0:00:13]} Nc6 {[%emt 0:03:10]} 7. O-O {[%emt 0:00:32]} Rb8 {[%emt 0:03:46]} 8. d3 {[%emt 0:04:54]} a6 {[%emt 0:04:02]} 9. a4 {[%emt 0:00:21]} Bd7 {[%emt 0:05:03]} 10. h3 {[%emt 0:00:53]} Qc8 {[%emt 0:05:02]} 11. Kh2 {[%emt 0:00:19]} h6 {[%emt 0:00:49]} 12. Be3 {[%emt 0:00:32]} Kh7 {[%emt 0:03:27]} 13. f4 {[%emt 0:07:14]} e5 {[%emt 0:05:59]} 14. d4 {[%emt 0:04:03]} exd4 {[%emt 0:08:58]} 15. Nxd4 {[%emt 0:00:26]} Re8 {[%emt 0:01:33]} 16. Qd2 {[%emt 0:08:03]} Na5 {[%emt 0:18:04]} 17. Qd3 {[%emt 0:00:55]} b6 {[%emt 0:01:10]} 18. b4 {[%emt 0:09:19]} Nb7 {[%emt 0:00:20]} 19. Rab1 {[%emt 0:03:14]} a5 {[%emt 0:06:11]} 20. e5 {[%emt 0:05:01]} dxe5 {[%emt 0:04:29]} 21. fxe5 {[%emt 0:02:25]} Rxe5 {[%emt 0:01:14]} 22. Bf4 {[%emt 0:08:41]} Rh5 {[%emt 0:02:32]} 23. h4 {[%emt 0:04:48]} axb4 {[%emt 0:00:45]} 24. Ncb5 {[%emt 0:00:47]} Nc5 {[%emt 0:02:21]} 25. Qe2 {[%emt 0:01:37]} Bxb5 {[%emt 0:04:49]} 26. Nxb5 {[%emt 0:00:54]} Ne6 {[%emt 0:01:39]} 27. Bh3 {[%emt 0:04:13]} Nxf4 {[%emt 0:08:41]} 28. Rxf4 {[%emt 0:00:43]} Qe8 {[%emt 0:00:15]} 29. Qxe8 {[%emt 0:02:52]} Nxe8 {[%emt 0:04:08]} 30. Rxb4 {[%emt 0:00:45]} Kg8 {[%emt 0:00:43]} 31. Bg2 {[%emt 0:02:12]} Be5 {[%emt 0:00:37]} 32. Re4 {[%emt 0:01:42]} Nf6 {[%emt 0:00:29]} 33. Rxe5 {[%emt 0:01:44]} Rxe5 {[%emt 0:00:43]} 34. Nxc7 {[%emt 0:00:16]} Ng4+ {[%emt 0:02:01]} 35. Kh3 {[%emt 0:00:21]} Nf2+ {[%emt 0:00:17]} 36. Kh2 {[%emt 0:00:10]} Ng4+ {[%emt 0:04:58]} 37. Kh3 {[%emt 0:01:16]} Nf2+ {[%emt 0:00:05]} 1/2-1/2

[Event "94th Tradewise Hastings Congress"]
[Site "Hastings"]
[Date "2019.01.06"]
[Round "10"]
[White "Spanton, Tim R"]
[Black "Sugden, John N"]
[Result "1/2-1/2"]
[ECO "B19"]
[WhiteElo "1954"]
[BlackElo "2072"]
[Annotator "NA"]
[PlyCount "69"]
[EventDate "2018.12.28"]
[EventType "swiss"]
[EventCountry "ENG"]
[SourceTitle "playchess.com"]
[Source "ChessBase"]
[SourceQuality "1"]
[TimeControl "40/6000+30:3000+30"]

1. e4 {[%emt 0:09:33]} c6 {[%emt 0:10:04]} 2. d4 {[%emt 0:00:05]} d5 {[%emt 0:00:16]} 3. Nc3 {[%emt 0:00:08]} dxe4 {[%emt 0:00:13]} 4. Nxe4 {[%emt 0:00:07]} Bf5 {[%emt 0:00:14]} 5. Ng3 {[%emt 0:00:06]} Bg6 {[%emt 0:00:12]} 6. Nf3 {[%emt 0:00:06]} Nd7 {[%emt 0:00:00]} 7. h4 {[%emt 0:00:00]} h6 {[%emt 0:00:00]} 8. h5 {[%emt 0:00:00]} Bh7 {[%emt 0:00:00]} 9. Bd3 {[%emt 0:00:00]} Bxd3 {[%emt 0:00:00]} 10. Qxd3 {[%emt 0:00:00]} e6 {[%emt 0:00:00]} 11. Bd2 {[%emt 0:00:00]} Ngf6 {[%emt 0:00:00]} 12. O-O-O {[%emt 0:00:00]} Qc7 {[%emt 0:00:00]} 13. Ne4 {[%emt 0:00:00]} O-O-O {[%emt 0:03:07]} 14. g3 {[%emt 0:00:00]} Nc5 {[%emt 0:04:27]} 15. Nxc5 {[%emt 0:00:00]} Bxc5 {[%emt 0:00:11]} 16. Bf4 {[%emt 0:00:00]} Bd6 {[%emt 0:08:38]} 17. Bxd6 {[%emt 0:00:00]} Rxd6 {[%emt 0:02:49]} 18. Kb1 {[%emt 0:03:10]} c5 {[%emt 0:09:56]} 19. Qe2 {[%emt 0:02:31]} Rhd8 {[%emt 0:17:11]} 20. c3 {[%emt 0:00:50]} cxd4 {[%emt 0:05:34]} 21. Nxd4 {[%emt 0:03:03]} Qc5 {[%emt 0:05:10]} 22. f4 {[%emt 0:08:54]} Qd5 {[%emt 0:08:28]} 23. g4 {[%emt 0:12:11]} Qe4+ {[%emt 0:07:22]} 24. Qxe4 {[%emt 0:00:16]} Nxe4 {[%emt 0:00:11]} 25. Rde1 {[%emt 0:03:17]} Nf6 {[%emt 0:10:39]} 26. Rhg1 {[%emt 0:01:52]} Nd5 {[%emt 0:02:23]} 27. f5 {[%emt 0:00:39]} Nc7 {[%emt 0:01:33]} 28. Rgf1 {[%emt 0:02:05]} Re8 {[%emt 0:03:02]} 29. fxe6 {[%emt 0:01:56]} fxe6 {[%emt 0:00:29]} 30. Rf7 {[%emt 0:00:48]} Rd7 {[%emt 0:00:43]} 31. Ref1 {[%emt 0:00:47]} Ree7 {[%emt 0:00:48]} 32. Rf8+ {[%emt 0:01:14]} Rd8 {[%emt 0:00:33]} 33. R8f7 {[%emt 0:01:01]} Rdd7 {[%emt 0:00:20]} 34. Rf8+ {[%emt 0:00:24]} Rd8 {[%emt 0:00:11]} 35. R8f7 {[%emt 0:00:07]} 1/2-1/2